Cogmind - Beta 13 @@@ ROGUE MODE // 2024.07.19 @ 11:49:49 Player: Castelle Result: Self-destructed Performance ------------- Evolutions (1) 500 Regions Visited (2) 400 Robots Destroyed (23) 115 Value Destroyed (310) 310 Prototype IDs (1) 20 Alien Tech Used (0) 0 Bonus (0) 0 TOTAL SCORE: 1345 Bonus ------- None Cogmind --------- Core Integrity 106/400 Matter 13/300 Energy 100/100 System Corruption 0% Temperature Cool (0) Movement Walking (120) Location -9/Materials Parts ------- > --- POWER (1) -------- (None) > --- PROPULSION (3) --- Improved Aluminum Leg > --- UTILITY (3) ------ Small Storage Unit > --- WEAPON (2) ------- (None) > --- INVENTORY (8) ---- Heavy Ion Engine Deuterium Engine Nuclear Core EM Pulse Cannon Rocket Launcher Mini Grenade Launcher Mini Grenade Launcher Peak State ------------ > --- POWER ------------ Heavy Ion Engine > --- PROPULSION ------- Improved Aluminum Leg Improved Aluminum Leg Improved Aluminum Leg > --- UTILITY ---------- Small Storage Unit Improved Terrain Scanner Tractor Beam > --- WEAPON ----------- Rocket Launcher Rocket Launcher > --- INVENTORY -------- Heavy Ion Engine Improved Aluminum Leg Rocket Launcher Rocket Launcher Mini Grenade Launcher Mini Grenade Launcher [Rating: 19] Favorites ----------- Power Ion Engine Engine Ion Engine Propulsion Aluminum Leg Leg Aluminum Leg Utility Small Storage Unit Device Improved Terrain Scanner Storage Small Storage Unit Weapon Rocket Launcher Energy Gun EM Pulse Gun Energy Cannon EM Pulse Cannon Ballistic Cannon Light Cannon Launcher Rocket Launcher Build | -11 -10 -9 ------- Run | Yrd Mat Mat Slots Evolved 2 | . . 2 Power . | . . . Propulsion 1 | . . 1 Utility 1 | . . 1 Weapon . | . . . Parts Attached 22 | 8 9 5 Power 2 | 1 1 . Engine 2 | 1 1 . Core . | . . . Reactor . | . . . Propulsion 6 | 2 2 2 Treads . | . . . Leg 6 | 2 2 2 Wheel . | . . . Hover . | . . . Flight . | . . . Utility 4 | 3 . 1 Device 3 | 2 . 1 Storage 1 | 1 . . Processor . | . . . Hackware . | . . . Protection . | . . . Artifact . | . . . Weapon 10 | 2 6 2 Energy Gun 2 | 2 . . Energy Cannon 1 | . . 1 Ballistic Gun . | . . . Ballistic Cannon 2 | . 2 . Launcher 5 | . 4 1 Special Weapon . | . . . Impact Weapon . | . . . Slashing Weapon . | . . . Piercing Weapon . | . . . Special Melee Weapon . | . . . Unidentified Prototypes 1 | . 1 . Parts Lost 10 | . . 10 Power 1 | . . 1 Propulsion 3 | . . 3 Utility 2 | . . 2 Weapon 4 | . . 4 Highest Loss Streak 6 | . . 6 To Critical Strikes . | . . . Average Slot Usage (%) 84 | . 100 62 Engine 12 | . 14 9 Leg 25 | . 28 20 Device 10 | . 14 5 Storage 12 | . 14 11 Energy Gun 2 | . 3 . Ballistic Cannon 10 | . 17 . Launcher 10 | . 7 14 Naked Turns . | . . . Heaviest Build 23 | 15 22 23 Greatest Support 39 | 20 26 39 Greatest Overweight (x) 4 | 4 . 1 Average Overweight (x) . | . . . Largest Inventory Capacity 8 | 8 8 8 Average Capacity 7 | 7 8 8 Most Carried 8 | 3 8 8 Average Carried 5 | 2 5 6 Final Capacity 8 | 8 8 8 Final Carried 8 | 3 8 7 Class Distribution -------------------- 100% | Mutant Dominant Class ---------------- Mutant | -10/Materials Mutant | -9/Materials Resources | -11 -10 -9 ----------- Run | Yrd Mat Mat Matter Collected 401 | 280 100 21 Remotely 81 | 81 . . Salvage Created 396 | 241 123 32 Parts 37 | 13 19 5 Haulers Intercepted . | . . . Recyclers Shooed . | . . . Parts Field Recycled . | . . . Retrieved Matter . | . . . Parts Self-Destructed . | . . . Prevented . | . . . Kills | -11 -10 -9 ------- Run | Yrd Mat Mat Combat Hostiles Destroyed 11 | . 9 2 Cannons 9 | . 9 . AOE 2 | . . 2 Classes Destroyed 7 | 3 3 1 Worker 5 | 2 2 1 Tunneler 5 | 4 . 1 Recycler 1 | 1 . . Watcher 1 | . 1 . Swarmer 7 | . 7 . Grunt 2 | . 2 . Sentry 2 | . . 2 Best Kill Streak 8 | 4 8 2 Combat Bots Only 8 | . 8 1 Max Kills in Single Turn 1 | 1 1 1 Gunslinging . | . . . Exploded 1 | . . 1 Melee . | . . . Uniques/NPCs Destroyed . | . . . Combat | -11 -10 -9 -------- Run | Yrd Mat Mat Hostile Shots Fired 170 | . 48 122 Missed 66 | . 16 50 Damage Taken 1504 | 36 296 1172 Core 362 | . 68 294 Absorbed by Shields . | . . . Core Remaining (%) 86 | 100 72 . Volleys Fired 56 | 23 24 9 Largest 2 | 2 2 2 Hottest 96 | 80 70 96 Shots Fired 109 | 46 48 15 Gun 46 | 46 . . Cannon 46 | . 44 2 Launcher 17 | . 4 13 Special . | . . . Kinetic 44 | . 44 . Thermal . | . . . Explosive 17 | . 4 13 Electromagnetic 48 | 46 . 2 Robot Hit Streak 7 | 7 4 6 Robot Miss Streak 3 | 2 3 3 Penetration Max . | . . . Secondary Targets . | . . . Shots Hit Robots 54 | 24 21 9 Core Hits 30 | 7 12 11 Critical Kills . | . . . Critical Parts Destroyed . | . . . Critical Strikes 1 | . 1 . Blast 1 | . 1 . Melee Attacks . | . . . Impact . | . . . Slashing . | . . . Piercing . | . . . Sneak Attacks . | . . . Combat Hostiles . | . . . Follow-up Attacks . | . . . Damage Inflicted 1177 | 375 452 350 Guns 271 | 271 . . Cannons 415 | . 374 41 Explosions 444 | 104 78 262 Melee . | . . . Ramming 47 | . . 47 Kinetic 374 | . 374 . Thermal 104 | 104 . . Explosive 340 | . 78 262 Electromagnetic 312 | 271 . 41 Impact . | . . . Slashing . | . . . Piercing . | . . . Highest Corruption . | . . . Average Corruption . | . . . Corruption Purged . | . . . Corruption Blocked . | . . . Overload Shots . | . . . Overflow Damage 11 | . 5 6 Projectiles 5 | . 5 . Explosions 6 | . . 6 Melee . | . . . Knockbacks 3 | . 3 . Impact . | . . . Kinetic 3 | . 3 . Secondary . | . . . Self-Inflicted Damage 311 | 37 . 274 Shots 9 | 1 . 8 Rammed . | . . . Targets Rammed 13 | . . 13 Kicked 13 | . . 13 Crushed . | . . . Highest Temperature 156 | 156 120 39 Average Temperature 45 | 49 46 17 Received Heat Transfer 273 | . 66 207 Siege Activations . | . . . Robots Corrupted . | . . . Combat Hostiles . | . . . Parts Fried 1 | 1 . . Impact Corruptions . | . . . Robots Melted . | . . . Combat Hostiles . | . . . Parts Melted . | . . . Heat Transferred 200 | 200 . . Parts Sabotaged . | . . . Parts Stolen . | . . . Parts Stripped . | . . . Power Chain Reactions 3 | 3 . . Alert | -11 -10 -9 ------- Run | Yrd Mat Mat Peak Influence 325 | 35 325 210 Initial 59 | . 22 59 Average 154 | 21 221 156 Maximum Alert Level 1 | . 1 1 Low Security (%) 67 | 100 31 94 Level 1 32 | . 68 5 Level 2 . | . . . Level 3 . | . . . Level 4 . | . . . Level 5 . | . . . High Security . | . . . Max Security . | . . . Squads Dispatched 1 | . 1 . Investigation . | . . . Extermination . | . . . Reinforcement 1 | . 1 . Assault . | . . . Garrison . | . . . Intercept . | . . . Searches Triggered . | . . . Construction Impeded . | . . . Haulers Reinforced . | . . . Active Scanning Responses . | . . . Cargo Convoy Interrupts . | . . . Stealth | -11 -10 -9 --------- Run | Yrd Mat Mat Distress Signals 1 | . . 1 Communications Jammed . | . . . Distress Signals . | . . . Times Spotted 30 | . 14 16 Peak Tracking Total 9 | . 5 9 Tactical Retreats 2 | . 1 1 Traps | -11 -10 -9 ------- Run | Yrd Mat Mat Traps Triggered . | . . . Indirectly . | . . . Trap Hack Attempts . | . . . Triggered . | . . . Disarmed . | . . . Reprogrammed . | . . . Reused . | . . . Traps Extracted . | . . . Installed . | . . . Triggered . | . . . Machines | -11 -10 -9 ---------- Run | Yrd Mat Mat Machines Disabled 2 | . . 2 Max in Single Turn 1 | . . 1 Machines Repaired . | . . . Machines Dismantled . | . . . Machines Sabotaged . | . . . Overloaded Fab Kills . | . . . Hacking | -11 -10 -9 --------- Run | Yrd Mat Mat Machines Accessed 1 | . 1 . Terminals . | . . . Fabricators . | . . . Repair Stations . | . . . Recycling Units 1 | . 1 . Scanalyzers . | . . . Garrison Access . | . . . Total Hacks 1 | . 1 . Successful 1 | . 1 . Failed . | . . . Catastrophic . | . . . Database Lockouts . | . . . Manual . | . . . Terminals . | . . . Fabricators . | . . . Repair Stations . | . . . Recycling Units 1 | . 1 . Scanalyzers . | . . . Garrison Access . | . . . Terminal Hacks . | . . . Fabricator Hacks . | . . . Repair Station Hacks . | . . . Recycling Unit Hacks 1 | . 1 . Report Inventory 1 | . 1 . Scanalyzer . | . . . Garrison Access Hacks . | . . . Unauthorized Hacks . | . . . Terminals . | . . . Fabricators . | . . . Repair Stations . | . . . Recycling Units . | . . . Scanalyzers . | . . . Garrison Access . | . . . Data Cores Recovered . | . . . Used . | . . . Hacking Detections . | . . . Full Trace Events . | . . . Feedback Events . | . . . Feedback Blocked . | . . . Robot Schematics Acquired . | . . . Robots Built . | . . . Authchips . | . . . Time . | . . . Total Robot Build Rating . | . . . Part Schematics Acquired . | . . . Parts Built . | . . . Authchips . | . . . Time . | . . . Total Part Build Rating . | . . . Parts Repaired . | . . . Time . | . . . Parts Recycled . | . . . Recycled Matter . | . . . Retrieved Matter . | . . . Retrieved Components . | . . . Parts Scanalyzed . | . . . Part Schematics Acquired . | . . . Parts Damaged . | . . . Bothacking | -11 -10 -9 ------------ Run | Yrd Mat Mat Used RIF Installer . | . . . Robots Hacked . | . . . Non-combat . | . . . Combat . | . . . Robot Hacks Applied . | . . . Relay Couplers Released . | . . . Fabnet Peak Effective % . | . . . Robots Rewired . | . . . Allies Hacked . | . . . Hacks Repelled . | . . . Allies | -11 -10 -9 -------- Run | Yrd Mat Mat Total Allies . | . . . Largest Group . | . . . Highest-Rated Group . | . . . Highest-Rated Ally . | . . . Total Orders . | . . . Ally Attacks . | . . . Total Damage . | . . . Kills . | . . . Allies Corrupted . | . . . Allies Melted . | . . . Intel | -11 -10 -9 ------- Run | Yrd Mat Mat Robot Analysis Total . | . . . Derelict Logs Recovered . | . . . Drone Launches . | . . . Drone Recoveries . | . . . Exploration | -11 -10 -9 ------------- Run | Yrd Mat Mat Turns Passed 907 | 210 414 283 Spaces Moved 496 | 93 239 164 Core 10 | 10 . . Treads . | . . . Legs 486 | 83 239 164 Wheels . | . . . Hover . | . . . Flight . | . . . Fastest Speed 50 | 50 120 120 Average Speed 128 | 127 120 140 Slowest Speed 250 | 250 120 190 Overloaded Moves . | . . . Propulsion Burnouts . | . . . Robots Hopped . | . . . Cave-ins Triggered 1 | . . 1 Exploration Rate (%) 25 | 4 52 21 Regions Visited 2 Branch Regions . Pre-discovered Areas . | . . . Known Exits Taken . | . . . Unknown Exits Taken 2 | 1 1 . Scrap Searched . | . . . Spaces Dug . | . . . Terrain Destroyed 120 | 15 24 81 Melee . | . . . Projectile . | . . . AOE 120 | 15 24 81 Terrain Rammed . | . . . Walls Destroyed . | . . . Machines Disabled . | . . . Actions | -11 -10 -9 --------- Run | Yrd Mat Mat Total 650 | 135 320 195 Wait 35 | 9 26 . Move 494 | 92 238 164 Hop . | . . . Pick Up 16 | 2 10 4 Fast Attach 10 | 8 2 . Attach 5 | . . 5 Detach 3 | 1 2 . Swap 7 | . 7 . Drop 11 | . 11 . Fire 56 | 23 24 9 Melee . | . . . Ram . | . . . Kick 13 | . . 13 Crush . | . . . Escape Stasis . | . . . Rewire . | . . . Trap . | . . . Miscellaneous . | . . . Route ------- -11/Scrapyard -10/Materials (discovered 3 exits: [*Mat] / [*Min x2]) -9/Materials History --------- Turn | Location | Event 2 | -11/Scrapyard | Met Revision 17 27 | -11/Scrapyard | Discovered new exit (range 15) 211 | -11/Scrapyard | Entered Materials 259 | -10/Materials | Discovered new exit (range 12) 307 | -10/Materials | Build established: Mutant 354 | -10/Materials | Destroyed 8 combat bots 380 | -10/Materials | Discovered new exit (range 6) 581 | -10/Materials | Discovered new exit (range 15) 625 | -10/Materials | Entered another Materials area 625 | -9/Materials | Evolved 2 slots: Propulsion x1, Utility x1 770 | -9/Materials | Crushed by falling debris 770 | -9/Materials | Core integrity fell below 50% 802 | -9/Materials | Lost 6 parts (2n1u3w) 908 | -9/Materials | Self-destructed Last Messages --------------- 00776_ Acquired 6 matter. 00790_ The unstable cave ceiling collapses. 00797_ Acquired Nuclear Core. 00802_ Acquired Deuterium Engine. 00813_ U-05 Engineer lays Concrete. 00815_ U-05 Engineer builds a Wall. 00820_ U-05 Engineer lays Concrete. 00829_ U-05 Engineer builds a Wall. 00829_ K-01 Serf collects debris. 00837_ Kicked K-01 Serf. 00868_ Hvy. Ion Engine destroyed. 00871_ Kicked T-07 Excavator. 00873_ S-10 Pest suffers critical hit (Destroy). 00873_ S-10 Pest destroyed. 00875_ Imp. Aluminum Leg destroyed. 00877_ S-10 Pest suffers critical hit (Destroy). 00893_ Rocket Launcher destroyed. 00895_ K-01 Serf collects debris. 00903_ S-10 Pest destroyed. 00905_ K-01 Serf collects debris. Map ----- +----------------------------------------------------+ | ?????????????????????????# #? #?????????? | | ?????????????????????????# # #?????????? | | ?????????????????????????# # #?????????? | | ?????????????????????????# + #?????????? | | ?????????????????????????# # #?????????? | | ?????????????????????????# ###########?????????? | | ??????????????????????#####/#####????????????????? | | ??????????????????????# #????????????????? | | ??????????????#???????# #????????????????? | | ??????????????????????# #????????????????? | | ??????????????????????# #????????????????? | | ???????????????????#??# #????????????????? | | ????????????#?????????# #????????????????? | | ??????????#????#??????# #???????? ??????? | | ??????????????????????# #??????? #?????? | | ???????????????????#####+############### #?????? | | ???????????????????#[ % #?????? ^ #?????? | | ???????????######### [ w* #?????? #?????? | | ???????????#]] * *## #?????# [[! # ???? | | ???????????# ****##[ #? ???+^ [!! + ????? | | ??????????## ## ks #? ???# [!!^ #?????? | | ???????????### # s # ????# #?????? | | ???????#?????# ### # ######## kga #?????? | | ???????????? # #?????? | | ?????????????# #?????? | | ?????????? ??#| @ #?????? | | ??##?????????# ############## ########?????? | | ?????????????## ## ## #????# #????????????? | | ??#??????#???# ###????# #????????????? | | ?????????????# [#??????# #????????????? | | ?????????????# """ # !?? ?# #????????????? | | ?????? """ # ??# #?#??????????? | | ??+ # """ # #??#?????????? | | ??? # """ + #????#???????? | | ??? # ### ### "T" # """ # #??#????#????? | | ????###### #??# ??######## ??# #??#?????????? | | ?????????###??# ???????#######??# #????????????? | | ??????????????# ???????? ?# #???????#????? | | ??????????#???# ????????? ?# #????????????? | | ??????????????# ??????????" # #??????#?????? | | ??????????????# ?#??????""" "Y" + #????????????? | | ??????????????# ?????"" """ """ ##???????????? | | ??????????????#???? #???????????? | | ????????????????????# # # ##??????????? | | ???????????????????# ############ | | ???????????????????# | | ??????????????????? T | | ???????????????????? | | ???????????????????? ############# | | ????????????????????? ##########???????????? | +----------------------------------------------------+ Best States ------------- Heat Dissipation 28 Energy Generation 14 Energy Capacity 280 Matter Stores 300 Matter Capacity 300 Sight Range 16 Terrain Scan Range 16 Terrain Scan Density 10 Evasion (%) 55 Item Schematics ----------------- None Robot Schematics ------------------ None Fabricated ------------ Nothing Alien Tech Used ----------------- None Achievements -------------- None Challenges ------------ None Game ------ Seed HelicalLinearTerminator Manual? 0 Play Time 00:13:59 Cumulative 16.2 hours Start 2024.07.19 @ 11:38:50 End 2024.07.19 @ 11:49:49 Sessions 1 Manual Loads 0 Difficulty Rogue Special Mode None Game No. 15 Rogue 10 Adventurer 5 Explorer 0 Win Type - Total 0 Types 0/0/0/0/0/0/0/0/0 Lore% 8 Gallery% 22 Achievement% 23 Wizard Run 0 Options --------- Layout 2 ASCII 0 Keyboard 1 Movement Numpad Keybinds 0 Fullscreen 1 Font 24/Smallcaps Map View 50x44 Zoom Use 0% Tactical HUD 1 Map Filters NONE Filters NONE Steam 1 RUN: abc18e6f-d177-48a7-b5c2-7f585eeea8c7